fUST/lending_fUST_20250829
["ID","MTS","AMOUNT","RATE_DAILY","PERIOD"]
[381969040,1756459841223,-500.0,0.00029902,2]
[381969041,1756459841232,-500.0,0.00029902,2]
[381969042,1756459841242,-500.0,0.00029902,2]
[381969043,1756459841251,-500.0,0.00029902,2]
[381969044,1756459841260,-500.0,0.00029902,2]
[381969045,1756459841270,-196.49809208,0.00029902,2]
[381969046,1756459841279,-500.0,0.00029902,2]
[381969047,1756459841288,-500.0,0.00029902,2]
[381969048,1756459841298,-500.0,0.00029902,2]
[381969049,1756459841308,-500.0,0.00029902,2]
[381969050,1756459841317,-500.0,0.00029902,2]
[381969051,1756459841327,-500.0,0.00029902,2]
[381969052,1756459841336,-500.0,0.00029902,2]
[381969053,1756459841346,-500.0,0.00029902,2]
[381969054,1756459841355,-170.53482498,0.00029902,2]
[381969055,1756459841365,-373.69270506,0.00029902,2]
[381969056,1756459841374,-500.0,0.00029902,2]
[381969057,1756459841385,-451.43244984,0.00029902,2]
[381969058,1756459841395,-154.47559679,0.00029902,2]
[381969059,1756459841404,-44908.78110476,0.00029903,2]
[381969101,1756459846602,-5069.13238065,0.00029903,2]
[381969111,1756459849591,-82150.10460959,0.00029903,2]
[381969112,1756459849603,-4361.36621558,0.00029903,2]
[381969113,1756459849615,-10000.0,0.00029913,60]
[381969114,1756459849626,-10000.0,0.00029913,60]
[381969115,1756459849637,-10000.0,0.00029913,60]
[381969116,1756459849648,-10000.0,0.00029913,60]
[381969117,1756459849660,-10000.0,0.00029913,60]
[381969118,1756459849675,-10000.0,0.00029913,60]
[381969119,1756459849687,-10000.0,0.00029913,60]
[381969120,1756459849699,-500.0,0.00029913,60]
[381969121,1756459849711,-2033.73842492,0.00029914,2]
[381969122,1756459849723,-500.0,0.00029973,5]
[381969123,1756459849734,-517.03,0.0003,7]
[381969124,1756459849747,-459.76,0.0003,7]
[381969125,1756459849885,-3861.95,0.0003,7]
[381969126,1756459849894,-258.3788776,0.00032335,2]
[381969127,1756459849904,-153.80442326,0.00032532,2]
[381969128,1756459849913,-152.05696901,0.00032532,2]
[381969129,1756459849923,-151.31136237,0.00032532,2]
[381969130,1756459849933,-151.70976807,0.00032532,2]
[381969131,1756459849943,-151.55868899,0.00032532,2]
[381969132,1756459849952,-974.0,0.00032737,2]
[381969133,1756459849961,-500.0,0.00034756,5]
[381969134,1756459849970,-609.92345202,0.0003485,5]
[381969135,1756459849979,-501.12458216,0.0003485,5]
[381969136,1756459849990,-500.0,0.0003485,5]
[381969137,1756459849999,-258.3788776,0.00034857,2]
[381969138,1756459850009,-253.35274779,0.00035,120]
[381969139,1756459850019,-1000.0,0.00035,120]
[381969140,1756459850028,-1000.0,0.00035304,5]
[381969141,1756459850038,-845.57753514,0.00035523,3]
[381969142,1756459850047,-217.30324474,0.00035523,3]
[381969143,1756459850057,-160.0,0.00035523,3]
[381969144,1756459850066,-216.21406313,0.00035523,3]
[381969145,1756459850075,-160.0,0.00035523,3]
[381969146,1756459850085,-160.0,0.00035523,3]
[381969147,1756459850095,-151.0,0.00035523,7]
[381969148,1756459850104,-151.0,0.00035523,7]
[381969149,1756459850113,-151.0,0.00035523,7]
[381969150,1756459850123,-151.0,0.00035523,7]
[381969151,1756459850132,-425.57542551,0.00035523,7]
[381969152,1756459850141,-500.0,0.00035573,5]
[381969153,1756459850151,-480.0,0.00035616,10]
[381969154,1756459850160,-482.90648096,0.00035616,10]
[381969155,1756459850170,-542.37859576,0.00035616,10]
[381969156,1756459850179,-480.0,0.00035616,10]
[381969157,1756459850188,-480.0,0.00035616,10]
[381969158,1756459850198,-480.0,0.00035616,10]
[381969159,1756459850208,-3853.09,0.00035616,10]
[381969160,1756459850217,-480.0,0.00035616,10]
[381969161,1756459850228,-480.0,0.00035616,10]
[381969162,1756459850237,-1412.32,0.00035616,10]
[381969163,1756459850247,-826.56,0.00035616,10]
[381969164,1756459850256,-480.0,0.00035616,10]
[381969165,1756459850266,-480.0,0.00035616,10]
[381969166,1756459850275,-481.01236674,0.00035616,10]
[381969167,1756459850284,-480.0,0.00035616,10]
[381969168,1756459850294,-480.0,0.00035616,10]
[381969169,1756459850303,-480.0,0.00035616,10]
[381969170,1756459850312,-480.0,0.00035616,10]
[381969171,1756459850321,-481.58666995,0.00035616,10]
[381969172,1756459850331,-482.31401468,0.00035616,10]
[381969173,1756459850340,-480.72758555,0.00035616,10]
[381969174,1756459850349,-483.05982689,0.00035616,10]
[381969175,1756459850358,-480.0,0.00035616,10]
[381969176,1756459850368,-485.02240069,0.00035616,10]
[381969177,1756459850378,-480.0,0.00035616,2]
[381969178,1756459850387,-480.0,0.00035616,10]
[381969179,1756459850397,-482.52022288,0.00035616,10]
[381969180,1756459850406,-1414.16,0.00035616,10]
[381969181,1756459850416,-482.16469018,0.00035616,10]
[381969182,1756459850426,-480.0,0.00035616,10]
[381969183,1756459850435,-482.26652386,0.00035616,10]
[381969184,1756459850444,-480.0,0.00035616,10]
[381969185,1756459850453,-533.77,0.00035616,10]
[381969186,1756459850462,-482.03875233,0.00035616,10]
[381969187,1756459850472,-480.0,0.00035616,10]
[381969188,1756459850481,-480.0,0.00035616,10]
[381969189,1756459850491,-480.0,0.00035616,10]
[381969190,1756459850500,-480.0,0.00035616,10]
[381969191,1756459850510,-480.0,0.00035616,10]
[381969192,1756459850519,-480.0,0.00035616,10]
[381969193,1756459850528,-606.64,0.00035616,10]
[381969194,1756459850538,-480.0,0.00035616,10]
[381969195,1756459850547,-480.0,0.00035616,10]
[381969196,1756459850556,-481.59711843,0.00035616,10]
[381969197,1756459850566,-480.0,0.00035616,10]
[381969198,1756459850575,-480.0,0.00035616,10]
[381969199,1756459850586,-481.73747891,0.00035616,10]
[381969200,1756459850595,-480.0,0.00035616,10]
[381969201,1756459850606,-480.0,0.00035616,10]
[381969202,1756459850616,-480.0,0.00035616,10]
[381969203,1756459850626,-480.0,0.00035616,10]
[381969204,1756459850635,-480.0,0.00035616,10]
[381969205,1756459850645,-480.0,0.0003589,10]
[381969206,1756459850654,-480.0,0.0003589,10]
[381969207,1756459850666,-480.0,0.0003589,10]
[381969208,1756459850675,-182.7784516,0.0003589,10]
[381969209,1756459850685,-3853.09,0.0003589,10]
[381969210,1756459850694,-169.76795989,0.0003589,10]
[381969211,1756459850703,-480.0,0.0003589,10]
[381969212,1756459850713,-1412.32,0.0003589,10]
[381969213,1756459850723,-826.56,0.0003589,10]
[381969214,1756459850732,-480.0,0.0003589,10]
[381969215,1756459850743,-480.0,0.0003589,10]
[381969216,1756459850752,-480.0,0.0003589,10]
[381969217,1756459850761,-480.0,0.0003589,10]
[381969218,1756459850770,-480.0,0.0003589,10]
[381969219,1756459850780,-480.0,0.0003589,10]
[381969220,1756459850790,-480.0,0.0003589,10]
[381969221,1756459850800,-480.0,0.0003589,2]
[381969222,1756459850810,-480.0,0.0003589,10]
[381969223,1756459850819,-1414.16,0.0003589,10]
[381969224,1756459850829,-480.0,0.0003589,10]
[381969225,1756459850838,-480.0,0.0003589,10]
[381969226,1756459850848,-533.77,0.0003589,10]
[381969227,1756459850858,-480.0,0.0003589,10]
[381969228,1756459850869,-480.0,0.0003589,10]
[381969229,1756459850878,-480.0,0.0003589,10]
[381969230,1756459850887,-480.0,0.0003589,10]
[381969231,1756459850897,-483.77539608,0.0003589,10]
[381969232,1756459850909,-606.64,0.0003589,10]
[381969233,1756459850919,-480.0,0.0003589,10]
[381969234,1756459850928,-483.33798615,0.0003589,10]
[381969235,1756459850937,-480.0,0.0003589,10]
[381969236,1756459850947,-480.0,0.0003589,10]
[381969237,1756459850956,-482.50966628,0.0003589,10]
[381969238,1756459850965,-480.0,0.0003589,10]
[381969239,1756459850975,-480.0,0.0003589,10]
[381969240,1756459850985,-482.784326,0.0003589,10]
[381969241,1756459850995,-482.88313607,0.0003589,10]
[381969242,1756459851004,-443.5996161,0.00035896,30]
[381969243,1756459851014,-480.0,0.00036164,10]
[381969244,1756459851023,-480.0,0.00036164,10]
[381969245,1756459851033,-480.0,0.00036164,10]
[381969246,1756459851043,-3853.09,0.00036164,10]
[381969247,1756459851052,-480.0,0.00036164,10]
[381969248,1756459851062,-1412.32,0.00036164,10]
[381969249,1756459851072,-826.56,0.00036164,10]
[381969250,1756459851082,-480.0,0.00036164,10]
[381969251,1756459851092,-480.0,0.00036164,10]
[381969252,1756459851102,-480.0,0.00036164,10]
[381969253,1756459851112,-480.0,0.00036164,10]
[381969254,1756459851124,-480.0,0.00036164,10]
[381969255,1756459851134,-480.0,0.00036164,10]
[381969256,1756459851144,-480.0,0.00036164,10]
[381969257,1756459851153,-480.0,0.00036164,2]
[381969258,1756459851163,-480.0,0.00036164,10]
[381969259,1756459851172,-1414.16,0.00036164,10]
[381969260,1756459851181,-480.0,0.00036164,10]
[381969261,1756459851191,-480.0,0.00036164,10]
[381969262,1756459851200,-533.77,0.00036164,10]
[381969263,1756459851209,-480.0,0.00036164,10]
[381969264,1756459851218,-151.0,0.00036164,30]
[381969265,1756459851227,-480.0,0.00036164,10]
[381969266,1756459851236,-480.0,0.00036164,10]
[381969267,1756459851245,-480.0,0.00036164,10]
[381969268,1756459851255,-606.64,0.00036164,10]
[381969269,1756459851265,-480.0,0.00036164,10]
[381969270,1756459851274,-151.0,0.00036164,30]
[381969271,1756459851283,-151.0,0.00036164,30]
[381969272,1756459851292,-480.0,0.00036164,10]
[381969273,1756459851300,-480.0,0.00036164,10]
[381969274,1756459851309,-480.0,0.00036164,10]
[381969275,1756459851318,-480.0,0.00036164,10]
[381969276,1756459851328,-182.0,0.00036379,120]
[381969277,1756459851337,-480.0,0.00036438,10]
[381969278,1756459851346,-383.23648585,0.00036438,10]
[381969279,1756459851355,-480.0,0.00036438,10]
[381969280,1756459851364,-3853.09,0.00036438,10]
[381969281,1756459851373,-480.0,0.00036438,10]
[381969282,1756459851382,-1412.32,0.00036438,10]
[381969283,1756459851391,-826.56,0.00036438,10]
[381969284,1756459851400,-480.0,0.00036438,10]
[381969285,1756459851409,-480.0,0.00036438,10]
[381969286,1756459851419,-480.0,0.00036438,10]
[381969287,1756459851428,-480.0,0.00036438,10]
[381969288,1756459851437,-517.58176619,0.00036438,10]
[381969289,1756459851446,-480.0,0.00036438,10]
[381969290,1756459851454,-480.0,0.00036438,10]
[381969291,1756459851463,-480.0,0.00036438,2]
[381969292,1756459851472,-480.0,0.00036438,10]
[381969293,1756459851481,-1414.16,0.00036438,10]
[381969294,1756459851491,-480.0,0.00036438,10]
[381969295,1756459851500,-480.0,0.00036438,10]
[381969296,1756459851509,-533.77,0.00036438,10]
[381969297,1756459851517,-480.0,0.00036438,10]
[381969298,1756459851527,-480.0,0.00036438,10]
[381969299,1756459851536,-480.0,0.00036438,10]
[381969300,1756459851545,-480.0,0.00036438,10]
[381969301,1756459851554,-606.64,0.00036438,10]
[381969302,1756459851563,-480.0,0.00036438,10]
[381969303,1756459851572,-480.0,0.00036438,10]
[381969304,1756459851581,-480.0,0.00036438,10]
[381969305,1756459851590,-480.0,0.00036438,10]
[381969306,1756459851599,-480.72155144,0.00036438,10]
[381969307,1756459851607,-500.0,0.00036673,5]
[381969308,1756459851617,-728.90935609,0.00036685,23]
[381969309,1756459851626,-232.6790651,0.00036686,3]
[381969310,1756459851635,-425.57542551,0.00036686,3]
[381969311,1756459851643,-396384.054284,0.00036686,3]
[381969312,1756459851652,-13084.0986467,0.00036686,3]
[381969313,1756459851663,-151.0,0.00036686,30]
[381969314,1756459851674,-151.0,0.00036686,30]
[381969315,1756459851683,-202.031042,0.00036686,30]
[381969316,1756459851692,-101021.3115599,0.00036696,2]
[381969317,1756459851701,-151.0,0.00036696,30]
[381969318,1756459851710,-151.0,0.00036696,30]
[381969319,1756459851719,-151.0,0.00036696,30]
[381969320,1756459851729,-480.0,0.00036712,10]
[381969321,1756459851739,-480.0,0.00036712,10]
[381969322,1756459851748,-3853.09,0.00036712,10]
[381969323,1756459851757,-480.0,0.00036712,10]
[381969324,1756459851766,-826.56,0.00036712,10]
[381969325,1756459851775,-1412.32,0.00036712,10]
[381969326,1756459851785,-480.0,0.00036712,10]
[381969327,1756459851794,-480.0,0.00036712,10]
[381969328,1756459851804,-480.0,0.00036712,10]
[381969329,1756459851813,-480.0,0.00036712,10]
[381969330,1756459851823,-480.0,0.00036712,10]
[381969331,1756459851832,-480.0,0.00036712,10]
[381969332,1756459851842,-480.0,0.00036712,2]
[381969333,1756459851851,-480.0,0.00036712,10]
[381969334,1756459851861,-1414.16,0.00036712,10]
[381969335,1756459851871,-480.0,0.00036712,10]
[381969336,1756459851880,-480.0,0.00036712,10]
[381969337,1756459851890,-533.77,0.00036712,10]
[381969338,1756459851900,-480.0,0.00036712,10]
[381969339,1756459851909,-480.0,0.00036712,10]
[381969340,1756459851920,-480.0,0.00036712,10]
[381969341,1756459851930,-480.0,0.00036712,10]
[381969342,1756459851940,-606.64,0.00036712,10]
[381969343,1756459851949,-416.24136884,0.00036712,10]
[381969344,1756459851959,-480.0,0.00036712,10]
[381969345,1756459851968,-480.0,0.00036712,10]
[381969346,1756459851979,-488.17969534,0.00036712,10]
[381969347,1756459851989,-160.0,0.00036713,2]
[381969348,1756459851998,-1242.7580216,0.0003677,2]
[381969349,1756459852008,-36670.28099192,0.0003687,2]
[381969350,1756459852017,-1257.15435112,0.0003687,2]
[381969351,1756459852027,-500.0,0.00036873,5]
[381969352,1756459852038,-500.0,0.00036873,5]
[381969353,1756459852048,-500.0,0.00036873,5]
[381969354,1756459852058,-500.0,0.00036873,5]
[381969355,1756459852067,-500.0,0.00036873,5]
[381969356,1756459852077,-500.0,0.00036873,5]
[381969357,1756459852086,-500.0,0.00036873,5]
[381969358,1756459852096,-500.0,0.00036873,5]
[381969359,1756459852106,-553.44226021,0.00036873,5]
[381969360,1756459852115,-153.0,0.00036904,30]
[381969361,1756459852125,-154.8472562,0.00036904,30]
[381969362,1756459852134,-367.3374763,0.00036904,30]
[381969363,1756459852144,-153.0,0.00036904,30]
[381969364,1756459852153,-266.4132444,0.00036904,30]
[381969365,1756459852163,-153.0,0.00036904,30]
[381969366,1756459852252,-4361.36621558,0.00036939,3]
[381969367,1756459852274,-151.0,0.00036949,30]
[381969368,1756459852283,-151.0,0.00036949,30]
[381969369,1756459852292,-151.0,0.00036949,30]
[381969370,1756459852302,-151.0,0.00036949,30]
[381969371,1756459852312,-151.0,0.00036949,30]
[381969372,1756459852326,-151.0,0.00036949,30]
[381969373,1756459852336,-151.0,0.00036959,30]
[381969374,1756459852345,-219.266405,0.00036959,30]
[381969375,1756459852354,-200.0,0.00036959,30]
[381969376,1756459852364,-151.0,0.00036959,30]
[381969377,1756459852373,-151.0,0.00036959,30]
[381969378,1756459852382,-210.93,0.0003696,120]
[381969379,1756459852392,-480.0,0.00036969,10]
[381969380,1756459852402,-485.70332692,0.00036969,10]
[381969381,1756459852411,-480.0,0.00036969,10]
[381969382,1756459852421,-480.0,0.00036969,10]
[381969383,1756459852436,-480.0,0.00036969,10]
[381969384,1756459852454,-480.0,0.00036969,10]
[381969385,1756459852464,-480.0,0.00036969,10]
[381969386,1756459852474,-480.0,0.00036969,10]
[381969387,1756459852483,-480.0,0.00036969,10]
[381969388,1756459852493,-482.71021051,0.00036969,10]
[381969389,1756459852503,-480.0,0.00036969,10]
[381969390,1756459852512,-480.0,0.00036969,10]
[381969391,1756459852522,-482.80823567,0.00036969,10]
[381969392,1756459852533,-480.0,0.00036969,10]
[381969393,1756459852543,-1000.0,0.00036969,10]
[381969394,1756459852553,-481.65405556,0.00036969,10]
[381969395,1756459852563,-480.0,0.00036969,10]
[381969396,1756459852573,-260.013968,0.00036969,30]
[381969397,1756459852583,-151.0,0.00036969,30]
[381969398,1756459852593,-500.0,0.00036969,10]
[381969399,1756459852602,-480.0,0.00036969,10]
[381969400,1756459852612,-160.0,0.0003697,3]
[381969401,1756459852621,-15898.8021988,0.0003697,2]
[381969402,1756459852631,-500.0,0.00036973,5]
[381969403,1756459852641,-500.0,0.00036973,5]
[381969404,1756459852651,-503.68614468,0.00036973,5]
[381969405,1756459852660,-151.75670651,0.00036973,5]
[381969406,1756459852674,-160.0,0.0003698,3]
[381969407,1756459852684,-8722.73243116,0.0003698,3]
[381969408,1756459852694,-151.0,0.0003698,30]
[381969409,1756459852704,-151.0,0.0003698,30]
[381969410,1756459852715,-151.0,0.0003698,30]
[381969411,1756459852724,-151.0,0.0003698,30]
[381969412,1756459852734,-151.0,0.0003698,30]
[381969413,1756459852745,-151.0,0.0003698,30]
[381969414,1756459852755,-480.0,0.00036986,10]
[381969415,1756459852764,-480.0,0.00036986,10]
[381969416,1756459852774,-3853.09,0.00036986,10]
[381969417,1756459852784,-480.0,0.00036986,10]
[381969418,1756459852794,-826.56,0.00036986,10]
[381969419,1756459852804,-1412.32,0.00036986,10]
[381969420,1756459852814,-480.0,0.00036986,10]
[381969421,1756459852825,-480.0,0.00036986,10]
[381969422,1756459852836,-480.0,0.00036986,10]
[381969423,1756459852846,-480.0,0.00036986,10]
[381969424,1756459852856,-480.0,0.00036986,10]
[381969425,1756459852866,-480.0,0.00036986,10]
[381969426,1756459852876,-480.0,0.00036986,2]
[381969427,1756459852886,-480.0,0.00036986,10]
[381969428,1756459852897,-1414.16,0.00036986,10]
[381969429,1756459852907,-480.0,0.00036986,10]
[381969430,1756459852919,-480.0,0.00036986,10]
[381969431,1756459852929,-533.77,0.00036986,10]
[381969432,1756459852940,-480.0,0.00036986,10]
[381969433,1756459852950,-480.0,0.00036986,10]
[381969434,1756459852960,-480.0,0.00036986,10]
[381969435,1756459852970,-480.0,0.00036986,10]
[381969436,1756459852981,-606.64,0.00036986,10]
[381969437,1756459852992,-480.0,0.00036986,10]
[381969438,1756459853001,-480.0,0.00036986,10]
[381969439,1756459853012,-83922.79744123,0.0003699,2]
[381969440,1756459853024,-151.0,0.0003699,30]
[381969441,1756459853033,-151.0,0.0003699,30]
[381969442,1756459853043,-151.0,0.0003699,30]
[381969443,1756459853054,-151.0,0.0003699,30]
[381969444,1756459853063,-151.0,0.0003699,30]
[381969445,1756459853073,-151.0,0.0003699,30]
[381969446,1756459853082,-459.76,0.00037,7]
[381969447,1756459853092,-3861.95,0.00037,14]
[381969448,1756459853102,-501.05885522,0.00037221,5]
[381969449,1756459853113,-4000.0,0.00037234,4]
[381969450,1756459853124,-483.40121797,0.00037243,10]
[381969451,1756459853137,-480.0,0.00037243,10]
[381969452,1756459853147,-413.84939668,0.00037243,10]
[381969453,1756459853157,-480.0,0.00037243,10]
[381969454,1756459853167,-484.39413226,0.00037243,10]
[381969455,1756459853176,-480.0,0.00037243,10]
[381969456,1756459853186,-481.91901662,0.00037243,10]
[381969457,1756459853196,-481.78958029,0.00037243,10]
[381969458,1756459853206,-481.71884311,0.00037243,10]
[381969459,1756459853215,-480.0,0.00037243,10]
[381969460,1756459853225,-480.0,0.00037243,10]
[381969461,1756459853235,-1000.0,0.00037243,10]
[381969462,1756459853245,-481.99490809,0.00037243,10]
[381969463,1756459853255,-500.0,0.00037243,10]
[381969464,1756459853265,-480.0,0.0003726,10]
[381969465,1756459853275,-480.0,0.0003726,10]
[381969466,1756459853285,-3853.09,0.0003726,10]
[381969467,1756459853294,-480.0,0.0003726,10]
[381969468,1756459853304,-826.56,0.0003726,10]
[381969469,1756459853314,-480.0,0.0003726,10]
[381969470,1756459853324,-1412.32,0.0003726,10]
[381969471,1756459853334,-480.0,0.0003726,10]
[381969472,1756459853343,-537.55931765,0.0003726,10]
[381969473,1756459853353,-480.0,0.0003726,10]
[381969474,1756459853362,-480.0,0.0003726,10]
[381969475,1756459853372,-480.0,0.0003726,10]
[381969476,1756459853382,-480.0,0.0003726,2]
[381969477,1756459853391,-480.0,0.0003726,10]
[381969478,1756459853401,-1414.16,0.0003726,10]
[381969479,1756459853411,-480.0,0.0003726,10]
[381969480,1756459853422,-480.0,0.0003726,10]
[381969481,1756459853431,-533.77,0.0003726,10]
[381969482,1756459853441,-480.0,0.0003726,10]
[381969483,1756459853451,-480.0,0.0003726,10]
[381969484,1756459853460,-480.0,0.0003726,10]
[381969485,1756459853469,-480.0,0.0003726,10]
[381969486,1756459853479,-606.64,0.0003726,10]
[381969487,1756459853489,-480.0,0.0003726,10]
[381969488,1756459853498,-270.28575885,0.0003726,10]
[381969489,1756459853508,-160.0,0.00037304,2]
[381969490,1756459853518,-417.15472785,0.00037304,2]
[381969491,1756459853527,-160.0,0.00037304,2]
[381969492,1756459853537,-160.0,0.00037304,2]
[381969493,1756459853547,-529.77114056,0.00037304,2]
[381969494,1756459853558,-217.30324474,0.00037304,2]
[381969495,1756459853576,-160.0,0.00037322,2]
[381969496,1756459853589,-216.21406313,0.00037322,2]
[381969497,1756459853598,-232.6790651,0.00037322,2]
[381969498,1756459853608,-258.3788776,0.00037378,2]
[381969499,1756459853617,-500.0,0.00037421,5]
[381969500,1756459853626,-1000.0,0.00037421,5]
[381969501,1756459853636,-500.0,0.00037421,5]
[381969502,1756459853645,-1007.41050581,0.00037421,5]
[381969503,1756459853655,-273.17532006,0.00037421,5]
[381969504,1756459853667,-150.212878,0.00037421,2]
[381969505,1756459853679,-150.212878,0.00037449,5]
[381969506,1756459853689,-517.03,0.000375,7]
[381969507,1756459853699,-480.0,0.00037517,10]
[381969508,1756459853709,-480.0,0.00037517,10]
[381969509,1756459853719,-480.0,0.00037517,10]
[381969510,1756459853728,-496.53954709,0.00037517,10]
[381969511,1756459853738,-485.40630171,0.00037517,10]
[381969512,1756459853748,-1000.0,0.00037517,10]
[381969513,1756459853758,-504.35817247,0.00037517,10]
[381969514,1756459853768,-350.9679044,0.00037521,5]
[381969515,1756459853777,-500.0,0.00037521,5]
[381969516,1756459853787,-4361.36621558,0.00037526,3]
[381969517,1756459853796,-480.0,0.00037534,10]
[381969518,1756459853806,-480.0,0.00037534,10]
[381969519,1756459853816,-3853.09,0.00037534,10]
[381969520,1756459853825,-480.0,0.00037534,10]
[381969521,1756459853835,-826.56,0.00037534,10]
[381969522,1756459853845,-480.0,0.00037534,10]
[381969523,1756459853855,-1412.32,0.00037534,10]
[381969524,1756459853865,-480.0,0.00037534,10]
[381969525,1756459853875,-480.0,0.00037534,10]
[381969526,1756459853884,-480.0,0.00037534,10]
[381969527,1756459853894,-480.0,0.00037534,10]
[381969528,1756459853904,-480.0,0.00037534,2]
[381969529,1756459853913,-480.0,0.00037534,10]
[381969530,1756459853923,-1414.16,0.00037534,10]
[381969531,1756459853933,-480.0,0.00037534,10]
[381969532,1756459853943,-480.0,0.00037534,10]
[381969533,1756459853952,-533.77,0.00037534,10]
[381969534,1756459853962,-480.0,0.00037534,10]
[381969535,1756459853971,-480.0,0.00037534,10]
[381969536,1756459853982,-480.0,0.00037534,10]
[381969537,1756459853992,-480.0,0.00037534,10]
[381969538,1756459854002,-606.64,0.00037534,10]
[381969539,1756459854012,-480.0,0.00037534,10]
[381969540,1756459854022,-151.0,0.00037536,30]
[381969541,1756459854031,-151.0,0.00037536,30]
[381969542,1756459854041,-458.8302712,0.00037537,2]
[381969543,1756459854051,-151.0,0.00037546,30]
[381969544,1756459854060,-151.0,0.00037546,30]
[381969545,1756459854070,-151.0,0.00037546,30]
[381969546,1756459854079,-151.0,0.00037546,30]
[381969547,1756459854089,-151.0,0.00037546,30]
[381969548,1756459854099,-151.0,0.000377,19]
[381969549,1756459854109,-480.0,0.00037791,10]
[381969550,1756459854118,-480.0,0.00037791,10]
[381969551,1756459854128,-480.0,0.00037791,10]
[381969552,1756459854138,-1005.17504957,0.00037791,10]
[381969553,1756459854148,-480.0,0.00037808,10]
[381969554,1756459854158,-480.0,0.00037808,10]
[381969555,1756459854168,-3853.09,0.00037808,10]
[381969556,1756459854181,-480.0,0.00037808,10]
[381969557,1756459854192,-826.56,0.00037808,10]
[381969558,1756459854203,-480.0,0.00037808,10]
[381969559,1756459854214,-1412.32,0.00037808,10]
[381969560,1756459854224,-480.0,0.00037808,10]
[381969561,1756459854235,-480.0,0.00037808,10]
[381969562,1756459854245,-491.21637311,0.00037808,10]
[381969563,1756459854256,-480.0,0.00037808,10]
[381969564,1756459854266,-480.0,0.00037808,2]
[381969565,1756459854277,-480.0,0.00037808,10]
[381969566,1756459854287,-1414.16,0.00037808,10]
[381969567,1756459854297,-480.0,0.00037808,10]
[381969568,1756459854308,-480.0,0.00037808,10]
[381969569,1756459854319,-533.77,0.00037808,10]
[381969570,1756459854330,-480.0,0.00037808,10]
[381969571,1756459854340,-480.0,0.00037808,10]
[381969572,1756459854351,-480.0,0.00037808,10]
[381969573,1756459854361,-395.66461654,0.00037808,10]
[381969574,1756459854371,-606.64,0.00037808,10]
[381969575,1756459854381,-480.0,0.00037808,10]
[381969576,1756459854391,-225.18697532,0.00037926,23]
[381969577,1756459854401,-250.0,0.00037926,23]
[381969578,1756459854411,-304.89319291,0.00037926,23]
[381969579,1756459854423,-151.0,0.00037926,23]
[381969580,1756459854433,-151.0,0.00037926,23]
[381969581,1756459854443,-151.0,0.00037926,23]
[381969582,1756459854453,-151.0,0.00037926,23]
[381969583,1756459854465,-151.0,0.00037926,23]
[381969584,1756459854475,-151.0,0.00037926,23]
[381969585,1756459854485,-151.0,0.00037926,23]
[381969586,1756459854496,-151.0,0.00037926,23]
[381969587,1756459854506,-151.0,0.00037926,23]
[381969588,1756459854515,-151.0,0.00037926,23]
[381969589,1756459854526,-151.0,0.00037926,23]